fUSD/lending_fUSD_20251130
["ID","MTS","AMOUNT","RATE_DAILY","PERIOD"]
[395181554,1764523839476,-250.0,0.00016418,2]
[395181555,1764523839485,-1000.0,0.00016418,2]
[395181556,1764523839495,-250.0,0.00016418,2]
[395181557,1764523839506,-1000.0,0.00016418,2]
[395181558,1764523839515,-250.0,0.00016418,2]
[395181559,1764523839525,-1000.0,0.00016418,2]
[395181560,1764523839534,-250.0,0.00016418,2]
[395181561,1764523839543,-1000.0,0.00016418,2]
[395181562,1764523839552,-250.0,0.00016418,2]
[395181563,1764523839562,-1000.0,0.00016418,2]
[395181564,1764523839571,-250.0,0.00016418,2]
[395181565,1764523839580,-1000.0,0.00016418,2]
[395181566,1764523839589,-1000.0,0.00016418,2]
[395181567,1764523839598,-500.0,0.00016418,2]
[395181568,1764523839608,-250.0,0.00016418,2]
[395181569,1764523839617,-1000.0,0.00016418,2]
[395181570,1764523839627,-250.0,0.00016418,2]
[395181571,1764523839636,-500.0,0.00016418,2]
[395181573,1764523839646,-1000.0,0.00016418,2]
[395181574,1764523839655,-250.0,0.00016418,2]
[395181575,1764523839664,-500.0,0.00016418,2]
[395181576,1764523839673,-201.93286098,0.00016418,2]
[395181577,1764523839682,-1000.0,0.00016418,2]
[395181578,1764523839691,-500.0,0.00016418,2]
[395181580,1764523839700,-500.0,0.00016418,2]
[395181582,1764523839710,-156.36375831,0.00016418,2]
[395181583,1764523839719,-500.0,0.00016418,2]
[395181584,1764523839728,-500.0,0.00016418,2]
[395181585,1764523839737,-500.0,0.00016418,2]
[395181586,1764523839747,-500.0,0.00016418,2]
[395181588,1764523839756,-500.0,0.00016418,2]
[395181590,1764523839767,-500.0,0.00016418,2]
[395181592,1764523839777,-500.0,0.00016418,2]
[395181594,1764523839787,-500.0,0.00016418,2]
[395181595,1764523839799,-500.0,0.00016418,2]
[395181596,1764523839810,-500.0,0.00016418,2]
[395181597,1764523839821,-1000.0,0.00016418,2]
[395181598,1764523839832,-500.0,0.00016418,2]
[395181599,1764523839843,-1000.0,0.00016418,2]
[395181600,1764523839853,-500.0,0.00016418,2]
[395181601,1764523839863,-1000.0,0.00016418,2]
[395181602,1764523839873,-500.0,0.00016418,2]
[395181603,1764523839883,-500.0,0.00016418,2]
[395181604,1764523839894,-1000.0,0.00016418,2]
[395181605,1764523839904,-500.0,0.00016418,2]
[395181606,1764523839915,-1000.0,0.00016418,2]
[395181607,1764523839926,-500.0,0.00016418,2]
[395181608,1764523839937,-1000.0,0.00016418,2]
[395181609,1764523839947,-257.91778498,0.00016418,2]
[395181610,1764523839958,-500.0,0.00016418,2]
[395181611,1764523839969,-1000.0,0.00016418,2]
[395181612,1764523839980,-500.0,0.00016418,2]
[395181613,1764523839990,-1000.0,0.00016418,2]
[395181614,1764523840001,-500.0,0.00016418,2]
[395181615,1764523840012,-1000.0,0.00016418,2]
[395181616,1764523840023,-500.0,0.00016418,2]
[395181617,1764523840033,-1000.0,0.00016418,2]
[395181618,1764523840043,-500.0,0.00016418,2]
[395181619,1764523840054,-1000.0,0.00016418,2]
[395181620,1764523840064,-1000.0,0.00016418,2]
[395181621,1764523840075,-1000.0,0.00016418,2]
[395181622,1764523840086,-151.0,0.00016418,2]
[395181623,1764523840095,-5455.3,0.00016438,2]
[395181624,1764523840105,-157.07922308,0.00016438,2]
[395181625,1764523840115,-163.92,0.0001644,2]
[395181626,1764523840124,-1852.42,0.00016485,2]
[395181627,1764523840136,-1000.0,0.00016521,2]
[395181628,1764523840147,-1998.22847857,0.000166,2]
[395181629,1764523840158,-168.0,0.00016803,2]
[395181630,1764523840169,-168.0,0.00016823,2]
[395181631,1764523840179,-200.0,0.00016864,2]
[395181632,1764523840190,-25000.0,0.00016882,3]
[395181633,1764523840200,-25000.0,0.00016891,3]
[395181634,1764523840211,-25000.0,0.000169,3]
[395181635,1764523840221,-1348.44226831,0.000169,2]
[395181636,1764523840232,-5000.0,0.00016966,2]
[395181637,1764523840242,-214.92187274,0.00016966,2]
[395181638,1764523840253,-158.82331566,0.00016973,2]
[395181639,1764523840264,-501.09571534,0.00016973,2]
[395181640,1764523840274,-500.0,0.00016973,2]
[395181641,1764523840285,-166.09514249,0.00016973,2]
[395181642,1764523840296,-500.0,0.00016973,2]
[395181643,1764523840307,-500.0,0.00016973,2]
[395181644,1764523840319,-205.98492011,0.00016973,2]
[395181645,1764523840329,-500.38978168,0.00016973,2]
[395181646,1764523840340,-500.0,0.00016973,2]
[395181647,1764523840351,-500.99004668,0.00016973,2]
[395181648,1764523840361,-500.0,0.00016973,2]
[395181649,1764523840372,-500.0,0.00016973,2]
[395181650,1764523840384,-500.0,0.00016973,2]
[395181651,1764523840395,-500.0,0.00016973,2]
[395181653,1764523840406,-500.0,0.00016973,2]
[395181655,1764523840416,-500.0,0.00016973,2]
[395181658,1764523840427,-500.0,0.00016973,2]
[395181660,1764523840438,-215.92719524,0.00016973,2]
[395181662,1764523840448,-1347.0,0.00016986,2]
[395181664,1764523840460,-164.38079063,0.0001699,2]
[395181666,1764523840471,-151.0,0.00016997,2]
[395181668,1764523840482,-5455.3,0.00016999,2]
[395181670,1764523840494,-300.0,0.00016999,2]
[395181672,1764523840508,-300.0,0.00016999,2]
[395181674,1764523840518,-300.0,0.00016999,2]
[395181677,1764523840529,-250.0,0.00017,2]
[395181679,1764523840539,-1000.0,0.00017,2]
[395181680,1764523840550,-1000.0,0.00017,2]
[395181681,1764523840561,-74617.02504029,0.00017,2]
[395181682,1764523840571,-3774820.44377862,0.00017,2]
[395181687,1764523842630,-14272.02208839,0.00017,2]
[395181692,1764523842795,-1066083.73598523,0.00017,2]
[395181695,1764523842812,-3608.27472446,0.00017,2]
[395181697,1764523842824,-10250.8,0.00017,2]
[395181698,1764523842839,-845.07499992,0.00017,2]
[395181699,1764523842851,-330.2975005,0.00017,2]
[395181700,1764523842864,-9167.39820001,0.00017,2]
[395181701,1764523842923,-21760.189,0.00017,2]
[395181702,1764523843050,-294.77570131,0.00017,2]
[395181703,1764523843061,-1805.59011836,0.00017,2]
[395181824,1764525031969,-155.64103584,0.00013592,2]
[395181825,1764525031979,-379.72096416,0.00013634,2]
[395181826,1764525031991,-2371.27903584,0.00013634,2]
[395181827,1764525032001,-250.0,0.00013639,2]
[395181828,1764525032010,-1200.0,0.00013696,2]
[395181829,1764525032020,-300.0,0.00013697,2]
[395181830,1764525032030,-1200.0,0.00013697,2]
[395181831,1764525032042,-300.0,0.00013697,2]
[395181832,1764525032051,-6838.01,0.00013698,2]
[395181833,1764525032061,-692.77,0.00013699,2]
[395181834,1764525032070,-202.46,0.00013699,2]
[395181835,1764525032080,-166.66,0.00013699,2]
[395181836,1764525032095,-195.0,0.00013699,2]
[395181837,1764525032106,-300.0,0.00013717,2]
[395181838,1764525032116,-263.27950744,0.00013717,2]
[395181839,1764525032126,-1000.0,0.00013819,2]
[395181840,1764525032136,-182.65,0.00013819,2]
[395181841,1764525032145,-166.66,0.00013854,2]
[395181842,1764525032155,-166.66,0.0001401,2]
[395181843,1764525032166,-166.66,0.00014165,2]
[395181844,1764525032177,-166.66,0.00014321,2]
[395181845,1764525032187,-166.66,0.00014477,2]
[395181846,1764525032197,-227.78464112,0.00014491,2]
[395181847,1764525032207,-150.0,0.00014499,2]
[395181848,1764525032218,-500.0,0.00014499,2]
[395181849,1764525032228,-500.0,0.00014499,2]
[395181850,1764525032237,-500.0,0.00014499,2]
[395181851,1764525032247,-500.0,0.00014499,2]
[395181852,1764525032258,-463.43392561,0.00014499,2]
[395181853,1764525032268,-61.65451482,0.00014499,2]
[395181854,1764525032280,-271.20164701,0.00014499,2]
[395181855,1764525032290,-475.21158263,0.00014499,2]
[395181856,1764525032300,-419.48567363,0.00014499,2]
[395181857,1764525032310,-500.0,0.00014499,2]
[395181858,1764525032320,-334.66682588,0.00014499,2]
[395181860,1764525032332,-165.33317412,0.00014499,2]
[395181863,1764525032342,-247.44410657,0.00014499,2]
[395181865,1764525032359,-252.55589343,0.00014499,2]
[395181867,1764525032368,-500.0,0.00014499,2]
[395181869,1764525032378,-68.34253252,0.00014499,2]
[395181872,1764525032390,-431.65746748,0.00014499,2]
[395181874,1764525032400,-558.99958675,0.00014499,2]
[395181876,1764525032410,-500.0,0.00014499,2]
[395181878,1764525032420,-500.0,0.00014499,2]
[395181880,1764525032429,-500.0,0.00014499,2]
[395181882,1764525032439,-500.0,0.00014499,2]
[395181884,1764525032448,-500.0,0.00014499,2]
[395181885,1764525032458,-500.0,0.00014499,2]
[395181886,1764525032469,-500.0,0.00014499,2]
[395181887,1764525032479,-500.0,0.00014499,2]
[395181888,1764525032489,-500.0,0.00014499,2]
[395181889,1764525032498,-500.0,0.00014499,2]
[395181890,1764525032508,-500.0,0.00014499,2]
[395181891,1764525032518,-500.0,0.00014499,2]
[395181892,1764525032527,-225.92813354,0.00014499,2]
[395181893,1764525032537,-500.0,0.00014499,2]
[395181894,1764525032546,-178.72003906,0.00014499,2]
[395181895,1764525032556,-500.0,0.00014499,2]
[395181896,1764525032565,-161.83464822,0.00014499,2]
[395181897,1764525032575,-402.24870018,0.000145,2]
[395181898,1764525032584,-10099.41916458,0.000145,2]
[395181899,1764525032594,-7472.98123852,0.000145,2]
[395181900,1764525032606,-61233.78583682,0.000145,2]
[395181901,1764525032618,-19293.67650463,0.000145,2]
[395181902,1764525032630,-41174.05657754,0.000145,2]
[395181903,1764525032641,-414.42999999,0.000145,2]
[395181904,1764525032652,-1131.66823526,0.000145,2]
[395181905,1764525032664,-578.6589422,0.000145,2]
[395181906,1764525032675,-908.31160856,0.000145,2]
[395181907,1764525032686,-7798.3960176,0.000145,2]
[395181948,1764525038081,-9465.38093127,0.000145,2]
[395181949,1764525038187,-618001.63534613,0.000145,2]
[395181950,1764525038197,-151.0,0.00014581,2]
[395181951,1764525038208,-1507.501,0.00014591,2]
[395181952,1764525038218,-779.62,0.00014591,2]
[395181953,1764525038228,-169.952,0.00014591,2]
[395181954,1764525038238,-200.0,0.00014591,2]
[395181955,1764525038248,-200.0,0.00014591,2]
[395181956,1764525038258,-500.0,0.00014591,2]
[395181957,1764525038267,-500.0,0.00014591,2]
[395181958,1764525038277,-500.0,0.00014591,2]
[395181959,1764525038287,-500.0,0.00014591,2]
[395181960,1764525038297,-500.0,0.00014591,2]
[395181961,1764525038307,-500.0,0.00014591,2]
[395181962,1764525038317,-500.0,0.00014591,2]
[395181963,1764525038327,-500.0,0.00014591,2]
[395181964,1764525038336,-500.0,0.00014591,2]
[395181965,1764525038345,-500.0,0.00014591,2]
[395181966,1764525038355,-500.0,0.00014591,2]
[395181967,1764525038364,-500.0,0.00014591,2]
[395181968,1764525038373,-500.0,0.00014591,2]
[395181969,1764525038383,-500.0,0.00014591,2]
[395181970,1764525038392,-151.0,0.00014591,2]
[395181971,1764525038403,-151.0,0.00014591,2]
[395181972,1764525038412,-151.0,0.00014591,2]
[395181973,1764525038423,-200.0,0.00014591,2]
[395181974,1764525038433,-500.0,0.00014591,2]
[395181975,1764525038443,-500.0,0.00014591,2]
[395181976,1764525038453,-500.0,0.00014591,2]
[395181978,1764525038462,-500.0,0.00014591,2]
[395181980,1764525038471,-500.0,0.00014591,2]
[395181982,1764525038483,-500.0,0.00014591,2]
[395181984,1764525038492,-500.0,0.00014591,2]
[395181986,1764525038502,-500.0,0.00014591,2]
[395181987,1764525038511,-500.0,0.00014591,2]
[395181989,1764525038520,-151.0,0.00014591,2]
[395181990,1764525038529,-151.0,0.00014591,2]
[395181992,1764525038538,-151.0,0.00014591,2]
[395181994,1764525038548,-151.0,0.00014591,2]
[395181996,1764525038557,-151.0,0.00014591,2]
[395181998,1764525038566,-151.0,0.00014591,2]
[395182000,1764525038575,-151.0,0.00014591,2]
[395182002,1764525038584,-151.0,0.00014591,2]
[395182004,1764525038593,-151.0,0.00014591,2]
[395182006,1764525038603,-151.0,0.00014591,2]
[395182008,1764525038612,-151.0,0.00014591,2]
[395182010,1764525038621,-151.0,0.00014591,2]
[395182012,1764525038631,-151.0,0.00014591,2]
[395182014,1764525038641,-500.43967575,0.00014599,2]
[395182016,1764525038651,-500.0,0.00014599,2]
[395182018,1764525038660,-500.0,0.00014599,2]
[395182019,1764525038669,-468.45145515,0.00014599,2]
[395182020,1764525038678,-500.0,0.00014599,2]
[395182021,1764525038688,-500.0,0.00014599,2]
[395182022,1764525038698,-500.0,0.00014599,2]
[395182023,1764525038707,-500.0,0.00014599,2]
[395182024,1764525038716,-500.0,0.00014599,2]
[395182025,1764525038726,-500.0,0.00014599,2]
[395182026,1764525038735,-500.0,0.00014599,2]
[395182027,1764525038744,-500.0,0.00014599,2]
[395182028,1764525038753,-500.0,0.00014599,2]
[395182029,1764525038763,-500.0,0.00014599,2]
[395182030,1764525038772,-500.0,0.00014599,2]
[395182031,1764525038781,-509.22860967,0.00014599,2]
[395182032,1764525038790,-500.0,0.00014599,2]
[395182033,1764525038799,-500.0,0.00014599,2]
[395182034,1764525038809,-500.0,0.00014599,2]
[395182035,1764525038818,-500.0,0.00014599,2]
[395182036,1764525038828,-500.0,0.00014599,2]
[395182037,1764525038837,-500.0,0.00014599,2]
[395182038,1764525038846,-500.0,0.00014599,2]
[395182039,1764525038856,-500.0,0.00014599,2]
[395182040,1764525038865,-500.0,0.00014599,2]
[395182041,1764525038874,-1096.55753012,0.00014599,5]
[395182042,1764525038883,-500.0,0.00014599,2]
[395182043,1764525038892,-500.0,0.00014599,2]
[395182044,1764525038902,-500.0,0.00014599,2]
[395182045,1764525038911,-500.0,0.00014599,2]
[395182046,1764525038920,-500.0,0.00014599,2]
[395182047,1764525038929,-500.0,0.00014599,2]
[395182048,1764525038938,-500.0,0.00014599,2]
[395182049,1764525038947,-500.0,0.00014599,2]
[395182050,1764525038956,-641.47208077,0.00014599,2]
[395182051,1764525038965,-500.0,0.00014599,2]
[395182052,1764525038974,-500.0,0.00014599,2]
[395182053,1764525038983,-521.68557809,0.00014599,2]
[395182054,1764525038992,-500.0,0.00014599,2]
[395182055,1764525039002,-500.0,0.00014599,2]
[395182056,1764525039011,-500.0,0.00014599,2]
[395182057,1764525039021,-181.30501265,0.00014599,2]
[395182059,1764525039031,-600.0,0.000146,2]
[395182061,1764525039045,-250.0,0.000146,2]
[395182062,1764525039056,-250.0,0.000146,2]
[395182063,1764525039066,-250.0,0.000146,2]
[395182064,1764525039076,-250.0,0.000146,2]
[395182065,1764525039087,-250.0,0.000146,2]
[395182066,1764525039098,-250.0,0.000146,2]
[395182067,1764525039107,-250.0,0.000146,2]
[395182068,1764525039118,-250.0,0.000146,2]
[395182069,1764525039131,-250.0,0.000146,2]
[395182070,1764525039142,-250.0,0.000146,2]
[395182071,1764525039152,-250.0,0.000146,2]
[395182072,1764525039162,-250.0,0.000146,2]
[395182073,1764525039172,-250.0,0.000146,2]
[395182074,1764525039182,-250.0,0.000146,2]
[395182075,1764525039192,-250.0,0.000146,2]
[395182076,1764525039201,-250.0,0.000146,2]
[395182077,1764525039211,-250.0,0.000146,2]
[395182078,1764525039221,-250.0,0.000146,2]
[395182079,1764525039230,-200.5,0.000146,2]
[395182080,1764525039239,-500.0,0.00014699,2]
[395182081,1764525039249,-500.0,0.00014699,2]
[395182082,1764525039258,-500.0,0.00014699,2]
[395182083,1764525039267,-500.0,0.00014699,2]
[395182084,1764525039277,-500.0,0.00014699,2]
[395182085,1764525039286,-500.0,0.00014699,2]
[395182086,1764525039296,-510.75391486,0.00014699,2]
[395182087,1764525039305,-500.0,0.00014699,2]
[395182088,1764525039315,-500.0,0.00014699,2]
[395182089,1764525039324,-500.0,0.00014699,2]
[395182090,1764525039333,-500.0,0.00014699,2]
[395182091,1764525039342,-500.0,0.00014699,2]
[395182092,1764525039351,-500.0,0.00014699,2]
[395182093,1764525039361,-500.0,0.00014699,2]
[395182094,1764525039370,-500.0,0.00014699,2]
[395182095,1764525039379,-500.0,0.00014699,2]
[395182096,1764525039389,-412.69296363,0.00014699,2]
[395182097,1764525039399,-540.71917716,0.00014699,2]
[395182098,1764525039409,-1136.52,0.00014699,2]
[395182099,1764525039418,-1136.52,0.00014699,2]
[395182100,1764525039427,-1136.52,0.00014699,2]
[395182101,1764525039438,-500.0,0.00014699,2]
[395182102,1764525039447,-500.0,0.00014699,2]
[395182103,1764525039456,-183.05840034,0.00014699,2]
[395182104,1764525039466,-500.0,0.00014699,2]
[395182105,1764525039475,-500.0,0.00014699,2]
[395182106,1764525039484,-500.0,0.00014699,2]
[395182107,1764525039493,-500.0,0.00014699,2]
[395182108,1764525039503,-500.0,0.00014699,2]
[395182109,1764525039512,-500.0,0.00014699,2]
[395182110,1764525039520,-500.0,0.00014699,2]
[395182111,1764525039530,-500.0,0.00014699,2]
[395182112,1764525039539,-500.0,0.00014699,2]
[395182113,1764525039548,-532.59351283,0.00014699,2]
[395182114,1764525039557,-500.0,0.00014699,2]
[395182115,1764525039567,-500.0,0.00014699,2]
[395182116,1764525039576,-331.0821075,0.00014699,2]
[395182117,1764525039585,-500.0,0.00014699,2]
[395182118,1764525039594,-500.0,0.00014699,2]
[395182119,1764525039604,-500.0,0.00014699,2]
[395182120,1764525039613,-500.0,0.00014699,2]
[395182121,1764525039623,-500.0,0.00014699,2]
[395182122,1764525039632,-323.68835638,0.00014699,2]
[395182123,1764525039642,-580.07246676,0.00014699,2]
[395182124,1764525039651,-10099.41916456,0.00014767,2]
[395182125,1764525039660,-7472.98123845,0.00014767,2]
[395182126,1764525039670,-402.24870018,0.00014843,2]
[395182127,1764525039679,-150.0,0.00014857,2]
[395182128,1764525039689,-779.62,0.00014865,2]
[395182129,1764525039698,-600.0,0.00014874,2]
[395182130,1764525039708,-225.29829185,0.000149,2]
[395182131,1764525039718,-250.0,0.00014951,2]
[395182132,1764525039727,-195.0,0.00014951,2]
[395182133,1764525039736,-195.0,0.00014951,2]
[395182134,1764525039746,-195.0,0.00014951,2]
[395182135,1764525039755,-420.0,0.0001501,2]
[395182136,1764525039764,-420.0,0.0001501,2]
[395182137,1764525039773,-151.0,0.0001503,2]
[395182138,1764525039783,-10099.41916456,0.00015033,2]
[395182139,1764525039792,-7472.98123845,0.00015033,2]
[395182140,1764525039801,-300.0,0.00015055,2]
[395182141,1764525039811,-195.0,0.00015055,2]
[395182143,1764525039820,-1680.0,0.00015067,2]
[395182144,1764525039830,-2952.62,0.00015081,2]
[395182145,1764525039839,-151.0,0.00015129,2]
[395182146,1764525039847,-3838.59,0.00015132,2]
[395182147,1764525039858,-779.62,0.00015139,2]
[395182148,1764525039867,-200.0,0.00015139,2]
[395182150,1764525039876,-500.0,0.00015139,2]
[395182152,1764525039886,-200.0,0.00015139,2]
[395182154,1764525039895,-600.0,0.00015148,2]
[395182155,1764525039904,-402.24870018,0.00015186,2]
[395182156,1764525039914,-2020.24,0.00015244,2]
[395182157,1764525039923,-150.0,0.00015288,2]
[395182158,1764525039932,-150.0,0.00015288,2]
[395182159,1764525039941,-150.0,0.00015288,2]
[395182160,1764525039950,-150.0,0.00015288,2]
[395182161,1764525039959,-150.0,0.00015288,2]
[395182162,1764525039968,-157.84068384,0.00015288,2]
[395182163,1764525039978,-150.0,0.00015288,2]
[395182164,1764525039987,-150.0,0.00015288,2]
[395182165,1764525039996,-150.0,0.00015288,2]
[395182166,1764525040006,-150.0,0.00015288,2]
[395182167,1764525040015,-10099.41916456,0.000153,2]
[395182168,1764525040025,-7472.98123845,0.000153,2]
[395182169,1764525040034,-150.0,0.00015362,2]
[395182170,1764525040047,-150.0,0.00015377,2]
[395182171,1764525040056,-150.0,0.00015394,2]
[395182172,1764525040066,-150.0,0.00015401,2]
[395182173,1764525040075,-150.0,0.00015401,2]
[395182174,1764525040086,-779.62,0.00015413,2]
[395182175,1764525040095,-600.0,0.00015422,2]
[395182176,1764525040104,-150.0,0.00015429,2]
[395182177,1764525040114,-150.0,0.00015435,2]
[395182178,1764525040125,-150.0,0.00015466,2]
[395182179,1764525040134,-150.0,0.000155,2]
[395182180,1764525040143,-150.0,0.000155,2]
[395182181,1764525040153,-150.0,0.00015509,2]
[395182182,1764525040162,-150.0,0.00015514,2]
[395182183,1764525040171,-150.0,0.00015514,2]
[395182184,1764525040182,-402.24870018,0.00015529,2]
[395182185,1764525040191,-1000.0,0.00015546,2]
[395182186,1764525040200,-150.0,0.00015556,2]
[395182187,1764525040210,-10099.41916456,0.00015567,2]
[395182188,1764525040220,-7472.98123845,0.00015567,2]
[395182189,1764525040230,-150.0,0.00015571,2]
[395182190,1764525040239,-150.0,0.00015583,2]
[395182191,1764525040248,-150.0,0.00015606,2]
[395182192,1764525040257,-150.0,0.00015627,2]
[395182193,1764525040268,-150.0,0.00015627,2]
[395182194,1764525040278,-150.0,0.00015627,2]
[395182195,1764525040287,-255.0,0.0001563,2]
[395182196,1764525040297,-150.0,0.00015645,2]
[395182197,1764525040307,-150.0,0.00015657,2]
[395182198,1764525040317,-151.0,0.00015677,2]
[395182199,1764525040327,-779.62,0.00015687,2]
[395182200,1764525040338,-200.0,0.00015687,2]
[395182201,1764525040347,-500.0,0.00015687,2]
[395182202,1764525040357,-200.0,0.00015687,2]
[395182203,1764525040366,-227.78464111,0.00015695,2]
[395182204,1764525040375,-600.0,0.00015696,2]
[395182205,1764525040385,-150.0,0.00015712,2]
[395182206,1764525040396,-150.0,0.00015712,2]
[395182207,1764525040405,-150.0,0.00015712,2]
[395182208,1764525040415,-150.0,0.00015731,2]
[395182209,1764525040424,-150.0,0.00015735,2]
[395182210,1764525040434,-150.0,0.00015741,2]
[395182211,1764525040443,-150.0,0.00015741,2]
[395182212,1764525040453,-150.0,0.00015805,2]
[395182213,1764525040463,-150.0,0.00015818,2]
[395182214,1764525040472,-150.0,0.00015824,2]
[395182215,1764525040481,-10099.41916456,0.00015833,2]
[395182216,1764525040490,-7472.98123845,0.00015833,2]
[395182217,1764525040500,-150.0,0.00015854,2]
[395182218,1764525040509,-150.0,0.00015854,2]
[395182219,1764525040518,-150.0,0.00015854,2]
[395182220,1764525040527,-402.24870018,0.00015871,2]
[395182221,1764525040536,-150.0,0.00015878,2]
[395182222,1764525040546,-1254.89309492,0.000159,2]
[395182223,1764525040554,-1254.89309487,0.000159,2]
[395182224,1764525040565,-1254.89309487,0.000159,2]
[395182225,1764525040574,-1254.89309487,0.000159,2]
[395182226,1764525040583,-150.0,0.00015913,2]
[395182227,1764525040592,-150.0,0.00015925,2]
[395182228,1764525040601,-150.0,0.00015925,2]
[395182229,1764525040610,-150.0,0.00015952,2]
[395182230,1764525040619,-779.62,0.00015961,2]
[395182231,1764525040628,-150.0,0.00015967,2]
[395182232,1764525040638,-150.0,0.00015967,2]
[395182233,1764525040647,-150.0,0.00015967,2]
[395182234,1764525040656,-500.0,0.00015973,2]
[395182235,1764525040666,-172.14260256,0.00015973,2]
[395182236,1764525040675,-500.0,0.00015973,2]
[395182237,1764525040684,-500.0,0.00015973,2]
[395182238,1764525040694,-500.0,0.00015973,2]
[395182239,1764525040703,-500.0,0.00015973,2]
[395182240,1764525040712,-161.07388452,0.00015973,2]
[395182241,1764525040722,-507.35080236,0.00015973,2]
[395182242,1764525040732,-174.27937181,0.00015973,2]
[395182243,1764525040741,-506.31065896,0.00015973,2]
[395182244,1764525040750,-500.0,0.00015973,2]
[395182245,1764525040759,-160.07187961,0.00015973,2]
[395182246,1764525040768,-500.0,0.00015973,2]
[395182247,1764525040777,-500.0,0.00015973,2]
[395182248,1764525040786,-500.0,0.00015973,2]
[395182249,1764525040795,-500.0,0.00015973,2]
[395182250,1764525040804,-500.0,0.00015973,2]
[395182251,1764525040813,-622.74851177,0.00015973,2]
[395182252,1764525040822,-201.11548058,0.00015973,2]
[395182253,1764525040831,-500.0,0.00015973,2]
[395182254,1764525040840,-157.2860755,0.00015973,2]
[395182255,1764525040850,-500.0,0.00015973,2]
[395182256,1764525040859,-500.0,0.00015973,2]
[395182257,1764525040868,-261.63,0.00015995,2]
[395182258,1764525040877,-150.0,0.00015995,2]
[395182259,1764525040886,-65744.00109152,0.00016,2]
[395182260,1764525040895,-150.0,0.00016003,2]
[395182261,1764525040904,-150.0,0.00016026,2]
[395182262,1764525040913,-150.0,0.00016031,2]
[395182263,1764525040923,-150.0,0.0001608,2]
[395182264,1764525040932,-150.0,0.0001608,2]
[395182265,1764525040940,-150.0,0.00016092,2]
[395182266,1764525040950,-500.0,0.00016099,2]
[395182267,1764525040959,-500.0,0.00016099,2]
[395182268,1764525040968,-500.0,0.00016099,2]
[395182269,1764525040977,-500.0,0.00016099,2]
[395182270,1764525040986,-500.0,0.00016099,2]
[395182271,1764525040995,-500.0,0.00016099,2]
[395182272,1764525041004,-10099.41916456,0.000161,2]
[395182273,1764525041014,-7472.98123845,0.000161,2]
[395182274,1764525041023,-150.0,0.000161,2]
[395182275,1764525041033,-150.0,0.00016137,2]
[395182276,1764525041047,-150.0,0.00016137,2]
[395182277,1764525041056,-150.0,0.00016137,2]
[395182281,1764525041267,-150.0,0.00016137,2]
[395182284,1764525041325,-150.0,0.00016174,2]
[395182285,1764525041334,-150.0,0.00016182,2]
[395182286,1764525041344,-150.0,0.00016194,2]
[395182287,1764525041353,-150.0,0.00016194,2]
[395182288,1764525041361,-402.24870018,0.00016214,2]
[395182290,1764525041371,-151.0,0.00016225,2]
[395182292,1764525041380,-779.62,0.00016235,2]
[395182294,1764525041389,-200.0,0.00016235,2]